{"text_format":"1","workbook":"xlsx","n_sheets":3,"sheets":["Relación de gastos","Relación de ingresos ","gastos e ingresos"],"not_rendered":{"charts":0,"images":2,"macros":1,"external_links":0,"defined_names":8,"comments":3,"pivot_tables":0},"unopened":[],"bounds":{"document_bytes":16777216,"sheet_cells":100000,"rows_first":2000,"rows_last":500,"rows_between":2000,"halvings":0,"cell_chars":16384,"cell_head_chars":4096},"cells_cut":0,"cells_raw":0,"read":"whole","date_system":"1900"}

{"sheet":"Relación de gastos","index":0,"n_rows":144,"n_cols":10,"rows_kept":144,"cut":false,"hidden":false,"merged":[[88,3,88,6],[88,9,88,10],[111,0,111,10],[92,0,92,10],[93,0,94,9],[102,0,102,10],[104,0,104,10],[105,0,105,10],[106,0,106,10],[107,0,107,10],[108,0,108,10],[109,0,109,10],[110,0,110,10],[24,0,24,10],[25,9,25,10],[26,9,26,10],[27,9,27,10],[33,9,33,10],[79,9,79,10],[76,0,76,10],[77,9,77,10],[51,9,51,10],[50,9,50,10],[28,9,28,10],[71,9,71,10],[75,9,75,10],[32,9,32,10],[31,9,31,10],[7,3,7,4],[64,0,64,10],[53,0,53,6],[35,9,35,10],[34,9,34,10],[73,9,73,10],[72,9,72,10],[40,9,40,10],[39,9,39,10],[29,0,29,6],[29,9,29,10],[38,9,38,10],[47,9,47,10],[46,9,46,10],[45,9,45,10],[44,9,44,10],[47,0,47,6],[20,9,20,10],[21,9,21,10],[22,9,22,10],[23,0,23,6],[23,9,23,10],[68,9,68,10],[67,9,67,10],[35,0,35,6],[41,0,41,6],[30,0,30,10],[17,9,17,10],[43,9,43,10],[7,9,7,10],[8,9,8,10],[11,0,11,10],[16,9,16,10],[37,9,37,10],[41,9,41,10],[48,0,48,10],[36,0,36,10],[42,0,42,10],[10,0,10,1],[55,0,55,1],[63,0,63,1],[18,0,18,10],[19,9,19,10],[65,9,65,10],[61,0,61,6],[56,0,56,10],[0,0,0,10],[4,0,4,1],[17,0,17,6],[2,2,2,3],[3,2,3,3],[4,2,4,3],[12,9,12,10],[2,0,2,1],[2,4,2,6],[3,4,3,6],[4,4,4,6],[7,2,8,2],[2,7,2,8],[3,7,3,8],[4,7,4,8],[9,0,9,8],[3,0,3,1],[7,1,8,1],[7,0,8,0],[6,0,6,4],[13,9,13,10],[14,9,14,10],[66,9,66,10],[49,9,49,10],[61,9,61,10],[60,9,60,10],[59,9,59,10],[58,9,58,10],[57,9,57,10],[53,9,53,10],[52,9,52,10],[142,0,142,10],[143,0,143,10],[98,0,98,1],[126,0,126,10],[127,0,127,10],[129,0,129,10],[130,0,130,10],[131,0,131,10],[132,0,132,10],[134,0,134,10],[135,0,135,10],[136,0,136,10],[112,0,112,10],[113,0,113,10],[114,0,114,10],[115,0,115,10],[116,0,116,10],[125,0,125,10],[120,0,120,10],[121,0,121,10],[122,0,122,10],[123,0,123,10],[124,0,124,10],[117,0,117,10],[118,0,118,10],[81,9,81,10],[69,9,69,10],[137,0,137,10],[138,0,138,10],[139,0,139,10],[140,0,140,10],[141,0,141,10],[74,9,74,10],[70,0,70,10],[75,0,75,6],[69,0,69,6],[89,0,89,5],[89,9,89,10],[83,9,83,10],[85,9,85,10],[86,9,86,10],[87,0,87,6],[87,9,87,10],[82,0,82,10],[81,0,81,6],[80,9,80,10],[88,0,88,2]]}
["Relación clasificada de todos los gastos realizados para la ejecución de la actividad subvencionada"]
[]
["Persona física/jurídica beneficiaria:         ",null,null,null,"Importe total del proyecto:",null,null,null,null,"euros"]
["Código de subvención:",null,null,null,"Importe de la subvención otorgada:",null,null,null,null,"euros"]
["Nombre del proyecto subvencionado:",null,null,null,"Período de ejecución del proyecto subvencionado:",null,null,null,null,"a"]
[]
["Gastos del proyecto/actividad/servicio subvencionado (*)"]
["Núm. de orden (0)","Número de documento: justificantes gastos personal (1), factura o recibo/tiquet(2)","Concepto de la factura / \ndocumento probatorio equivalente","Emisor/a de la factura",null,"Fecha de emisión","Importe total de la factura","Importe imputable (dedicado) al proyecto (3)","Importe imputable a la subvención municipal (4)","Observaciones"]
[null,null,null,"NIF","Nombre","dd/mm/aaaa","euros","euros","euros"]
["GASTOS DIRECTOS (Aquellos que se identifican directamente con el proyecto)"]
["Submodalidad AC1"]
["AC1.D1.  Honorarios de los formadores/as externos"]
[]
[]
[]
[]
[]
["Subtotal D1",null,null,null,null,null,null,{"$f":"SUM(H13:H17)","v":0},{"$f":"SUM(I13:I17)","v":0}]
["AC1.D2. Coste salarial de las personas participantes correspondiente a las horas de formación (Máx 40% subvención) "]
[]
[]
[]
[]
["Subtotal D2",null,null,null,null,null,null,{"$f":"SUM(H20:H23)","v":0},{"$f":"SUM(I20:I23)","v":0}]
["AC1.D3.  Alquiler de bienes inmuebles vinculados directamente a la realización de la formación"]
[]
[]
[]
[]
["Subtotal D3",null,null,null,null,null,null,{"$f":"SUM(H26:H29)","v":0},{"$f":"SUM(I26:I29)","v":0}]
["AC1.D4. Adquisición de materiales y bienes consumibles necesarios para la realización de la formación"]
[]
[]
[]
[]
["Subtotal D4",null,null,null,null,null,null,{"$f":"SUM(H32:H35)","v":0},{"$f":"SUM(I32:I35)","v":0}]
["AC1.D5. Transporte – mensajería vinculados directamente a la realización de la formación"]
[]
[]
[]
[]
["Subtotal D5",null,null,null,null,null,null,{"$f":"SUM(H38:H41)","v":0},{"$f":"SUM(I38:I41)","v":0}]
["AC1.D6.  Seguros"]
[]
[]
[]
[]
["Subtotal D6",null,null,null,null,null,null,{"$f":"SUM(H44:H47)","v":0},{"$f":"SUM(I44:I47)","v":0}]
["AC1.D7.  Viajes y desplazamientos imputables a las actividades del proyecto  (Máx 10% subvención) "]
[]
[]
[]
[]
["Subtotal D7",null,null,null,null,null,null,{"$f":"SUM(H50:H53)","v":0},{"$f":"SUM(I50:I53)","v":0}]
[]
["Submodalidad AC2"]
["AC2.D1.  Gastos de matriculación en aciones formativas externas"]
[]
[]
[]
[]
["Subtotal D8",null,null,null,null,null,null,{"$f":"SUM(H58:H61)","v":0},{"$f":"SUM(I58:I61)","v":0}]
[]
["Submodalidad AC3"]
["AC3.D1.  Gastos de ayuda económica –beca- de la persona estudiante en prácticas"]
[]
[]
[]
[]
["Subtotal D9",null,null,null,null,null,null,{"$f":"SUM(H66:H69)","v":0},{"$f":"SUM(I66:I69)","v":0}]
["AC3.D2. Gastos de seguridad social del alumno/a en prácticas"]
[]
[]
[]
[]
["Subtotal D10",null,null,null,null,null,null,{"$f":"SUM(H72:H75)","v":0},{"$f":"SUM(I72:I75)","v":0}]
["AC3.D3. Gastos del contrato laboral de la formación dual, modalidad contrato de formación y aprendizaje"]
[]
[]
[]
[]
["Subtotal D11",null,null,null,null,null,null,{"$f":"SUM(H78:H81)","v":0},{"$f":"SUM(I78:I81)","v":0}]
["AC3.D4. Gastos de gestión asociados a la tramitación del Convenio de Cooperación Educativa o el Acuerdo Formativo de Colaboración"]
[]
[]
[]
[]
["Subtotal D12",null,null,null,null,null,null,{"$f":"SUM(H84:H87)","v":0},{"$f":"SUM(I84:I87)","v":0}]
["TOTAL GASTOS DIRECTOS ",null,null,"TOTAL GASTOS DIRECTOS",null,null,null,{"$f":"+H18+H36+H42+H48+H54+H62+H70+H76+H82+H88+H24+H30","v":0},{"$f":"+I18+I36+I42+I48+I54+I62+I70+I76+I82+I88+I24+I30","v":0}]
["TOTAL GASTOS",null,null,null,null,null,"TOTAL",{"$f":"+H89","v":0},{"$f":"+I89","v":0}]
[]
[]
["El Sr./Sra. (indicar el nombre y apellidos de la persona representante que firma la justificación) con DNI/NIE (indicar el núm. DNI) en calidad de persona física beneficiaria o representante legal de la persona jurídica beneficiaria (indicar nombre y apellidos) con NIF (indicar núm DNI)."]
["CERTIFICA que los gastos imputados al proyecto/actividad/servicio subvencionado han sido efectivamente efectuados; que custodiará la documentación soporte que lo acredita; que esta documentación se encuentra a disposición del Ayuntamiento de Barcelona o de los otros entes municipales en los archivos de esta Entidad, durante un período mínimo de 4 años a contar desde la fecha de presentación de la presente justificación."]
[]
[]
[]
[]
["Población y fecha: ",null,null,"Firma y sello (en caso de registro físico)"]
[]
[]
["Notas:"]
["(*) Deben relacionarse todos los gastos del proyecto/actividad/servicio subvencionado. En el caso de que el número de filas de cada concepto sea insuficiente podéis insertar líneas dentro del mismo concepto seleccionando una celda verde y haciendo clic sobre el botón de insertar línea."]
["(0) El número de orden debe ser correlativo comenzando por D.1.1, D.1.2, D.1.3, D.2.4, etc."]
["(1) Respecto a los gastos de recursos humanos, puede ser subvencionable el coste total salarial mensual, que corresponde a la suma de la retribución bruta que aparece en la nómina del trabajador/a más la cuota de la empresa a la Seg. Social. Los gastos de personal se justifican con la nómina del trabajador/a acompañada de los correspondientes TC1 y TC2 de la TGSS y el modelo 111 del IRPF."]
["(2) En el caso de que el documento justificativo del resto de gastos, no sea una factura, sino otro documento probatorio equivalente, como un recibo o justificante (como para dietas o transporte público), hay que indicarlo en la columna \"observaciones\"."]
["(3) En el caso de que un justificante incluya conceptos que no tienen que ver con el proyecto/actividad/servicio por el cual se ha otorgado la subvención, aquí sólo se debe indicar la parte que realmente se ha dedicado al proyecto."]
["(4) En esta columna se debe indicar el importe total o parcial de la factura que se imputa a la subvención recibida del Ayuntamiento de Barcelona. El total imputado, en esta columna, dede ser igual al importe de la subvención recibida."]
["Modalidad Ac: Formación: Innovación y formación para la mejora de la gestión y la apertura de nuevas líneas de negocio (para las 3 submodalidades)"]
["1.  La cuantía de la subvención otorgada no superará el 80% del gasto total del proyecto a subvencionar. "]
["2.  Las solicitudes pueden contener una propuesta de proyecto de formación que contenga las tres submodalidades (Ac1, Ac2 y Ac3), o bién sólo una submodalidad. "]
["3.  En cualquier caso, el importe máximo de subvención, tanto si la solicitud contiene una, dos o tres submodalidades, será de 4.500 euros. El importe máximo permitido para la modalidad Ac3 (prácticas de personas estudiantes) es de 3.500 euros."]
["5.  No son imputables en esta submodalidad ningún gasto indirecto de los detallados en el apartado 13.3 de las bases reguladoras."]
["6. Los salarios percibidos por las personas contratadas en el marco del proyecto subvencionado no sean inferiores a 1.088,56 euros brutos mensuales (13.062,72 euros brutos en cómpute anual) en el caso de jornadas completas, o la parte proporcional en el caso de jornadas parciales (punto 7 bases reguladoras: requisitos de los proyectos)."]
["7. En ningún caso se considerarán gastos subvencionables:"]
["* Los impuestos indirectos cuando sean susceptibles de recuperación o compensación, ni los impuestos sobre la renta."]
["* Los gastos de inversión, incluidas las adquisiciones de bienes muebles."]
["* Los gastos realizados con fecha anterior al inicio del proyecto y fecha posterior a la finalización del proyecto."]
["* Otros gastos que se indiquen en la convocatoria."]
[]
["Submodalidad Ac1: Formación grupal para personas socias, trabajadoras y voluntarias de la entidad"]
["1.  Los gastos de coste salarial de las personas participantes en la formación grupal se limitan a un máximo de un 40% del importe de la subvención."]
["2.  Los gastos de viajes y desplazamiento imputables a las actividades del proyecto subvencionable se limitan a un máximo de un 10% del importe de la subvención."]
["3.  Duración mínima de la formación grupal se establece en 10 horas para cada persona participante y el mínimo se establece en 10 personas. Será exigible la hoja de firma de las personas participantes en la acción grupal."]
["4.  Será necesario justificar la contribución directa de las acciones en la mejora del proyecto empresarial."]
["5.  Se podrán organizar sesiones de formación compartidas por diferentes entidades de economía social y solidaria, para optimizar recursos y tiempo destinados a la realización de las acciones, y favorecer la intercooperación."]
["6. Los materiales producidos: de difusión, estudios, informes o materiales didácticos utilizados, etc. en el caso de tratarse de gasto elegible de la subvención, deberán tener licencia Creative Commons -Compartir Igual- (share alike) y no podrán tener la condición –Sin Obras Derivadas- (no derivate Works)."]
[]
[]
["Submodalidad Ac2: Gastos de matriculación de las personas de la entidad en acciones formativas externas"]
["1.  La formación a subvencionar debe tener una duración mínima de 150 horas y/o un coste mínimo de 300 € para cada participante."]
["2.  Será exigible el documento acreditativo de la entidad formadora de la participación de la persona/as participantes."]
["3.  Será necesario justificar la contribución directa de las acciones en la mejora del proyecto empresarial."]
[]
["Submodalidad Ac3: Prácticas de las personas estudiantes universitarias y de formación dual de FP en entidades y empresas de la ESS"]
["1.  El importe máximo permitido para la modalidad Ac3 (prácticas de personas estudiantes) es de 3.500 €."]
["2.  Será exigible el convenio de Cooperación Educativa con la universidad respectiva, o bién el Acuerdo Formativo de Colaboración (en el caso de beca) o el Contrato de formación y aprendizaje con el Centro de Formación Profesional correspondiente."]
["3.  Los/as alumnos beneficiarios/as deben ser personas residentes en la ciudad o matriculados/as en universidades o centros de formación de la ciudad."]
["4.  El programa de prácticas de los/as alumnos/as debe ser de una duración mínima de 400 horas. "]
["5.  Sólo puede presentarse una solicitud para una plaza de prácticas por entidad solicitante. "]
["6.  Será necesario dar de alta al alumno/a en la seguridad social como alumno/a en prácticas (tanto para prácticas curriculares como extracurriculares universitarias como para los alumnos de FP en formación dual – modalidad beca-)."]
["7.  El coste bruto hora de la remuneración del alumno/a en prácticas universitarias no podrá ser inferior de 6€/hora. "]
["8. Será necesario remunerar el alumno/a según la modalidad de FP dual escojida como mínimo de acuerdo con la normativa específica que establece el Departamento de Educación de la Generalitat de Catalunya."]
["9. La formalización de las prácticas, el desarrollo del contenido, evaluación y seguimiento se ajustará a la normativa vigente del Departamento de Educación de la Generalitat de Catalunya y de otras normas que le sean de aplicación."]

{"sheet":"Relación de ingresos ","index":1,"n_rows":79,"n_cols":10,"rows_kept":79,"cut":false,"hidden":false,"merged":[[12,6,12,9],[48,6,48,9],[19,6,19,9],[18,6,18,9],[17,6,17,9],[16,6,16,9],[34,6,34,9],[44,6,44,9],[43,6,43,9],[42,6,42,9],[14,6,14,9],[20,6,20,9],[29,6,29,9],[28,6,28,9],[38,6,38,9],[37,6,37,9],[26,0,26,3],[50,6,50,9],[49,6,49,9],[20,0,20,3],[45,0,45,9],[47,6,47,9],[46,6,46,9],[26,6,26,9],[25,6,25,9],[24,6,24,9],[23,6,23,9],[22,6,22,9],[36,6,36,9],[35,6,35,9],[41,6,41,9],[40,6,40,9],[30,6,30,9],[32,6,32,9],[31,6,31,9],[44,0,44,3],[27,0,27,9],[33,0,33,9],[39,0,39,9],[38,0,38,3],[32,0,32,3],[0,0,0,9],[9,0,9,9],[15,0,15,9],[21,0,21,9],[7,6,8,9],[10,6,10,9],[11,6,11,9],[7,0,8,0],[13,6,13,9],[3,2,3,3],[2,2,2,3],[6,0,6,3],[4,2,4,3],[7,2,7,3],[7,1,8,1],[14,0,14,3],[50,0,50,3],[53,6,53,9],[52,6,52,9],[66,0,66,3],[65,0,65,3],[51,0,51,9],[57,0,57,9],[56,6,56,9],[58,6,58,9],[56,0,56,3],[59,6,59,9],[66,6,66,9],[60,6,60,9],[61,6,61,9],[62,6,62,9],[63,6,63,9],[74,1,74,2],[68,0,68,9],[69,0,70,9],[65,6,65,9],[64,6,64,9]]}
["Detalle de todos los ingresos obtenidos y aportaciones del propio beneficiario para la ejecución de la actividad subvencionada"]
[]
[null,"Nombre de la persona física/jurídica beneficiaria:        ",{"$f":"'Relación de gastos'!C3","v":0},null,"Importe total del proyecto:",null,null,{"$f":"IF(+'Relación de gastos'!H3=\"\",\"\",+'Relación de gastos'!H3)","v":""},"euros"]
[null,"Código de subvención:",{"$f":"'Relación de gastos'!C4","v":0},null,"Importe de la subvención otorgada:",null,null,{"$f":"IF(+'Relación de gastos'!H4=\"\",\"\",+'Relación de gastos'!H4)","v":""},"euros"]
[null,"Nombre del proyecto subvencionado:",{"$f":"'Relación de gastos'!C5","v":0},null,"Período de ejecución del proyecto subvencionado:",null,null,{"$f":"IF(+'Relación de gastos'!H5=\"\",\"\",+'Relación de gastos'!H5)","v":""},"a",{"$f":"IF(+'Relación de gastos'!K5=\"\",\"\",+'Relación de gastos'!K5)","v":""}]
[]
["Ingresos del proyecto/actividad/servicio subvencionado"]
["Núm. de orden (0)","Concepto del ingreso","Emisor del ingreso",null,"Fecha de cobro\n(dd/mm/aaaa)","Importe","Observaciones"]
[null,null,"NIF","Nombre","(1)","euros"]
["A. Subvención municipal "]
[]
[]
[]
[]
[null,null,null,null,"Subtotal A",{"$f":"SUM(F11:F14)","v":0}]
["B. Subvenciones de otras administraciones"]
[]
[]
[]
[]
[null,null,null,null,"Subtotal B",{"$f":"SUM(F17:F20)","v":0}]
["C. Subvenciones de entes privados"]
[]
[]
[]
[]
[null,null,null,null,"Subtotal C",{"$f":"SUM(F23:F26)","v":0}]
["D. Recursos propios de la entidad aplicados al proyecto"]
[]
[]
[]
[]
[null,null,null,null,"Subtotal D",{"$f":"SUM(F29:F32)","v":0}]
["E. Taquillaje"]
[]
[]
[]
[]
[null,null,null,null,"Subtotal E",{"$f":"SUM(F35:F38)","v":0}]
["F. Cuotas de inscripción"]
[]
[]
[]
[]
[null,null,null,null,"Subtotal F",{"$f":"SUM(F41:F44)","v":0}]
["G. Venta de Productos"]
[{"$f":"IF(B47<>\"\",MAX($A$10:A46)+1,\"\")","v":""}]
[{"$f":"IF(B48<>\"\",MAX($A$10:A47)+1,\"\")","v":""}]
[{"$f":"IF(B49<>\"\",MAX($A$10:A48)+1,\"\")","v":""}]
[{"$f":"IF(B50<>\"\",MAX($A$10:A49)+1,\"\")","v":""}]
[null,null,null,null,"Subtotal G",{"$f":"SUM(F47:F50)","v":0}]
["H. Publicidad y/o Esponsorización"]
[]
[]
[]
[]
[null,null,null,null,"Subtotal H",{"$f":"SUM(F53:F56)","v":0}]
["I. Otros ingresos"]
[]
[]
[]
[]
[]
[]
[]
[null,null,null,null,"Subtotal I",{"$f":"SUM(F59:F65)","v":0}]
["Total INGRESOS",null,null,null,"TOTAL",{"$f":"+F15+F21+F27+F33+F39+F45+F51+F57+F66","v":0}]
[]
["El Sr./Sra. (indicar el nombre y apellidos de la persona representante que firma la justificación) con DNI/NIE (indicar el núm. DNI) en calidad de persona física beneficiaria o representante legal de la persona jurídica beneficiaria (indicar nombre y apellidos) con NIF (indicar núm DNI)."]
["CERTIFICA que los ingresos imputados al proyecto/actividad/servicio subvencionado han sido efectivamente ingresados; que custodiará la documentación soporte que lo acredita; que esta documentación se encuentra a disposición del Ayuntamiento de Barcelona o de los otros entes municipales en los archivos de esta Entidad, durante un período mínimo de 4 años a contar desde la fecha de presentación de la presente justificación."]
[]
[]
[]
[]
[null,"Población y fecha: ",null,null,"Firma y sello (en caso de registro físico)"]
[]
[null,"Nota:"]
[null,"(0) El número de orden debe ser correlativo comenzando por el número 1"]
[null,"(1) En caso de que el ingreso esté pendiente de cobro, indicar \"P. Cobro\" "]

{"sheet":"gastos e ingresos","index":2,"n_rows":45,"n_cols":11,"rows_kept":45,"cut":false,"hidden":false,"merged":[[43,0,43,10],[44,0,44,10],[41,0,41,10],[42,0,42,10],[31,0,31,10],[32,0,33,9],[38,0,38,10],[39,0,39,10],[40,0,40,10],[35,1,35,2],[10,8,11,8],[10,9,11,9],[23,6,23,7],[24,6,24,7],[24,8,24,9],[4,0,4,1],[4,2,4,3],[4,5,4,6],[5,0,5,1],[5,2,5,3],[5,5,5,6],[6,0,6,1],[6,2,6,3],[9,0,9,1],[9,6,9,7],[10,0,11,1],[10,2,11,2],[10,3,11,3],[10,6,11,7]]}
[]
[]
["Estado de los gastos realizados y de los ingresos obtenidos para la ejecución de la actividad subvencionada (*)"]
[]
["Nombre de la persona física/jurídica beneficiaria:         ",null,{"$f":"'Relación de ingresos '!C3:D3","v":0},null,null,"Importe total del proyecto:",null,{"$f":"'Relación de ingresos '!H3","v":""},"euros"]
["Código de subvención:",null,{"$f":"'Relación de ingresos '!C4:D4","v":0},null,null,"Importe de la subvención otorgada:",null,{"$f":"'Relación de ingresos '!H4","v":""},"euros"]
["Nombre del proyecto subvencionado:",null,{"$f":"'Relación de ingresos '!C5:D5","v":0},null,null,"Período de ejecución del proyecto subvencionado:",null,null,{"$f":"'Relación de ingresos '!H5","v":""},"a",{"$f":"'Relación de ingresos '!J5","v":""}]
[]
["SUBVENCIONES PARA LA PROMOCIÓN Y REFUERZO DE LA ECONOMÍA SOCIAL Y SOLIDARIA 2020"]
["GASTOS PREVISTOS",null,"importe en euros",null,null,null,"INGRESOS PREVISTOS",null,"importe en euros"]
["Gastos directos \n(aquellos que se identifican directamente con el proyecto)",null,"Previsión inicial o reformulada ya aprovada (1)","Gastos realizados (2)","Diferencia\n",null,"Ingresos previstos",null,"Previsión inicial (1)","Ingresos obtenidos (3)"]
[null,null,null,null,"(2-1)"]
["Ac","D1. Honorarios de los formadores/as externos",null,{"$f":"'Relación de gastos'!H18","v":0},{"$f":"+C13-D13","v":0},{"$f":"+IF(D13<0,\"No s'admeten valors negatius\",\"\")","v":""},"A.","Subvención municipal (importe solicitado en la instancia/otorgado)",null,{"$f":"'Relación de ingresos '!F15","v":0},{"$f":"+IF(J13<0,\"No s'admeten valors negatius\",IF(J13<>'Relación de ingresos '!F15,\"No coincideix amb import pestanya anterior\",\"\"))","v":""}]
[null,"D2. Coste salarial de las personas participantes correspondiente a las horas de formación (Máx 40% subvención) ",null,{"$f":"'Relación de gastos'!H24","v":0},{"$f":"+C14-D14","v":0},{"$f":"+IF(D14<0,\"No s'admeten valors negatius\",\"\")","v":""},"B.","Subvenciones de otras administraciones",null,{"$f":"'Relación de ingresos '!F21","v":0},{"$f":"+IF(J14<0,\"No s'admeten valors negatius\",\"\")","v":""}]
[null,"D3.  Alquiler de bienes inmuebles vinculados directamente a la realización de la formación",null,{"$f":"'Relación de gastos'!H30","v":0},0,"","C.","Subvenciones de entes privados",null,{"$f":"'Relación de ingresos '!F27","v":0},""]
[null,"D4. Adquisición de materiales y bienes consumibles necesarios para la realización de la formación",null,{"$f":"'Relación de gastos'!H36","v":0},0,"","D.","Recursos propios de la entidad aplicados al proyecto",null,{"$f":"'Relación de ingresos '!F33","v":0},""]
[null,"D5. Transporte – mensajería vinculados directamente a la realización de la formación",null,{"$f":"'Relación de gastos'!H42","v":0},0,"","E.","Taquillaje",null,{"$f":"'Relación de ingresos '!F39","v":0},""]
[null,"D6. Seguros",null,{"$f":"'Relación de gastos'!H48","v":0},0,"","F.","Cuotas de inscripción",null,{"$f":"'Relación de ingresos '!F45","v":0},""]
[null,"D7. Viajes y desplazamientos imputables a las actividades del proyecto  (Máx 10% subvención) ",null,{"$f":"'Relación de gastos'!H54","v":0},0,"","G.","Venta de Productos",null,{"$f":"'Relación de ingresos '!F51","v":0},""]
[null,"D8. Gastos de matriculación en acciones formativas externas",null,{"$f":"'Relación de gastos'!H62","v":0},0,"","H","Publicidad y/o Esponsorización",null,{"$f":"'Relación de ingresos '!F57","v":0},""]
[null,"D9. Gastos de ayuda económica –beca- de la persona estudiante en prácticas",null,{"$f":"'Relación de gastos'!H70","v":0},0,{"$f":"+IF(D21<0,\"No s'admeten valors negatius\",\"\")","v":""},"I.","Otros ingresos",null,{"$f":"'Relación de ingresos '!F66","v":0},""]
[null,"D10. Gastos de seguridad social del alumno/a en prácticas",null,{"$f":"'Relación de gastos'!H76","v":0},0,{"$f":"+IF(D22<0,\"No s'admeten valors negatius\",\"\")","v":""},null,"Total Ingresos",{"$f":"SUM(I13:I21)","v":0},{"$f":"SUM(J13:J21)","v":0}]
[null,"D11. Gastos del contrato laboral de la formación dual, modalidad contrato de formación y aprendizaje",null,{"$f":"'Relación de gastos'!H82","v":0},0,""]
[null,"D12. Gastos de gestión asociados a la tramitación del Convenio de Cooperación Educativa o el Acuerdo Formativo de Colaboración",null,{"$f":"'Relación de gastos'!H88","v":0},0,"","Ingresos menos gastos ",null,{"$f":"I22-C26","v":0},{"$f":"J22-D26","v":0}]
[null,"Total Gastos Directos   ",{"$f":"SUM(C13:C24)","v":0},{"$f":"SUM(D13:D24)","v":0},{"$f":"SUM(E13:E24)","v":0},null,"Desviación de Gastos (4)",null,"Desviación de ingresos (4)"]
[null,"Total Gastos",{"$f":"+C25","v":0},{"$f":"+D25","v":0},{"$f":"+E25","v":0},null,"Importe"," % ","Importe","%"]
[null,null,null,null,"importe en euros",null,{"$f":"D26-C26","v":0},{"$f":"D26/C26","v":{"$error":"#DIV/0!"}},{"$f":"J22-I22","v":0},{"$f":"J22/I22","v":{"$error":"#DIV/0!"}}]
[null,null,null,null,null,null,null,null,"% subvencionado inicialmente o después de reformulación (5)",{"$f":"I13/I22","v":{"$error":"#DIV/0!"}}]
[null,null,null,null,null,null,null,null,"% subvencionado después de justificación (6)",{"$f":"J13/J22","v":{"$error":"#DIV/0!"}}]
[]
[]
["El Sr./Sra. (indicar el nombre y apellidos de la persona representante que firma la justificación) con DNI/NIE (indicar el núm. DNI) en calidad de persona física beneficiaria o representante legal de la persona jurídica beneficiaria (indicar nombre y apellidos) con NIF (indicar núm DNI)."]
["CERTIFICA que los ingresos imputados al proyecto/actividad/servicio subvencionado han sido efectivamente ingresados; que custodiará la documentación soporte que lo acredita; que esta documentación se encuentra a disposición del Ayuntamiento de Barcelona o de los otros entes municipales en los archivos de esta Entidad, durante un período mínimo de 4 años a contar desde la fecha de presentación de la presente justificación."]
[]
[]
[null,"Población y fecha: ",null,null,"Firma y sello (en caso de registro físico)"]
[]
["Notas:"]
["(*) Las columnas sombreadas en color se irán llenando automáticamente a partir de los datos introducidos en los documentos de gastos -detalle e ingresos-detalle. Por lo tanto, no imprimir esta hoja hasta haber llenado las otras."]
["(1) Previsión inicial o reformulación ya aprobada= Se debe indicar la previsión inicial de gastos y de ingresos según aquello que se indicó en el proyecto original en el \"plan de viabilidad económica del proyecto - presupuesto general\". En el caso de que ya se haya aprobado una reformulación, se debe indicar las cantidades reformuladas. "]
["(2) Gastos reales = Coste real total del proyecto subvencionado. Automáticamente se introducirán los subtotales de los gastos relacionados en la hoja Gastos-detalle."]
["(3) Ingresos reales = Total de ingresos obtenidos para la realización del proyecto subvencionado. Automáticamente se introducirán los subtotales de los ingresos relacionados en la hoja Ingresos-detalle"]
["(4) Desviación: En el caso de los gastos, la desviación es la diferencia entre gastos reales y la previsión inicial de gastos; y en el caso de ingresos, la diferencia entre los ingresos reales y la previsión inicial de ingresos. "]
["(5) % financiación municipal = porcentaje que suponen las subvenciones municipales (A) respecto del  total de ingresos del proyecto subvencionado."]
["(6) El % de la desviación final de gastos se calcula dividiendo el importe resultante de gastos reales - gastos previstos, entre el total de gastos previstos y de la misma manera los ingresos. En el caso de existir una desviación siempre se debe motivar."]